Cogmind - Beta 14 @@@ ROGUE MODE // 2024.10.21 @ 23:09:51 Player: Cereal Killer Result: Destroyed by Enhanced Grunt with Neutron Cannon Performance ------------- Evolutions (4) 2000 Regions Visited (14) 2800 Robots Destroyed (123) 615 Value Destroyed (4624) 4624 Prototype IDs (239) 4780 Alien Tech Used (0) 0 Bonus (4510) 4510 TOTAL SCORE: 19329 Bonus ------- High Alert Combat Kills 473 Follower Combat Kills 137 Aligned with FarCom 300 Met Data Miner 300 Used Data Conduit 3000 Met Imprinter 300 Cogmind --------- Core Integrity 0/850 Matter 180/300 Energy 750/750 System Corruption 0% Temperature Cool (4) Movement Rolling (120) Ox2 Location -6/Data Miner Parts ------- > --- POWER (2) -------- Light Nuclear Core Improved Deuterium Engine > --- PROPULSION (4) --- Carbon-fiber Leg Wheel Armored Huge Wheel > --- UTILITY (7) ------ High-capacity Storage Unit Improved Energy Well Weapon Cycler Improved Medium Armor Plating Improved Thermal Defense Suite > --- WEAPON (2) ------- Rocket Array Makeshift Sword > --- INVENTORY (20) --- Carbon-fiber Leg Advanced Heat Sink Advanced Heat Sink Coolant Injector Medium Storage Unit Improved Energy Well (400) Large Matter Pod (150) Improved Particle Charger PSU Rigger Thermic Laser Light Antimatter Cannon Improved Datajack Plasma Flamer Fire Trap PL-3XN's Ring of Power GAL Module Peak State ------------ > --- POWER ------------ Improved Deuterium Engine Improved Deuterium Engine > --- PROPULSION ------- Armored Huge Wheel Armored Huge Wheel > --- UTILITY ---------- Improved Heat Sink Coolant Injector High-capacity Storage Unit Improved Armor Integrity Analyzer Improved Medium Armor Plating Medium Reactive Plating Improved Thermal Defense Suite > --- WEAPON ----------- Neutron Cannon Neutron Cannon > --- INVENTORY -------- Deuterium Engine Light Nuclear Core Armored Huge Wheel Coolant Injector Improved Energy Well Improved Energy Well Large Matter Pod Precision Matter Filter Precision Matter Filter PSU Rigger Improved EM Pulse Cannon Light Antimatter Cannon Rocket Array Rocket Array Vibroblade PL-3XN's Ring of Power GAL Module [Rating: 78] Favorites ----------- Power Improved Deuterium Engine Engine Improved Deuterium Engine Power Core Light Nuclear Core Propulsion Armored Huge Wheel Treads Light Treads Leg Carbon-fiber Leg Wheel Armored Huge Wheel Hover Unit Aerolev Unit Flight Unit Cesium-ion Thruster Utility High-capacity Storage Unit Device Coolant Injector Storage High-capacity Storage Unit Processor Improved Armor Integrity Analyzer Protection Medium Reactive Plating Weapon Neutron Cannon Energy Gun EM Pulse Gun Energy Cannon Neutron Cannon Ballistic Gun Light Assault Rifle Ballistic Cannon Light Antimatter Cannon Launcher Mini Grenade Launcher Special Weapon Plasma Flamer Slashing Weapon Vibroblade Build | -11 -10 -10 -10 -9 -8 -7 -7 -7 -7 -6 -6 -6 -6 -6 ------- Run | Yrd Mat Min Exi Min Mat Fac Low Low Zio Pro Fac Low Low Dat Slots Evolved 8 | . . . . . 4 2 . . . . 2 . . . Power 1 | . . . . . . . . . . . 1 . . . Propulsion 2 | . . . . . 2 . . . . . . . . . Utility 5 | . . . . . 2 2 . . . . 1 . . . Weapon . | . . . . . . . . . . . . . . . Parts Attached 122 | 5 2 . . 7 19 34 2 . 9 2 1 10 26 5 Power 9 | 1 . . . 1 1 . . . 1 . 1 . 4 . Engine 7 | 1 . . . . 1 . . . 1 . 1 . 3 . Core 2 | . . . . 1 . . . . . . . . 1 . Reactor . | . . . . . . . . . . . . . . . Propulsion 23 | 2 . . . 4 7 1 . . . . . . 9 . Treads 4 | . . . . 2 2 . . . . . . . . . Leg 3 | . . . . . . . . . . . . . 3 . Wheel 11 | 2 . . . 2 3 1 . . . . . . 3 . Hover 2 | . . . . . 2 . . . . . . . . . Flight 3 | . . . . . . . . . . . . . 3 . Utility 42 | . 1 . . 1 6 15 1 . 5 . . 5 5 3 Device 20 | . . . . . 3 7 1 . 1 . . 3 2 3 Storage 4 | . 1 . . . . 1 . . . . . . 2 . Processor 5 | . . . . . . . . . 4 . . 1 . . Hackware . | . . . . . . . . . . . . . . . Protection 13 | . . . . 1 3 7 . . . . . 1 1 . Artifact . | . . . . . . . . . . . . . . . Weapon 48 | 2 1 . . 1 5 18 1 . 3 2 . 5 8 2 Energy Gun 5 | 2 . . . 1 1 1 . . . . . . . . Energy Cannon 18 | . . . . . . 8 1 . 2 2 . 3 2 . Ballistic Gun 1 | . 1 . . . . . . . . . . . . . Ballistic Cannon 3 | . . . . . . 1 . . . . . . 2 . Launcher 15 | . . . . . 4 6 . . . . . 2 2 1 Special Weapon 1 | . . . . . . . . . . . . . 1 . Impact Weapon . | . . . . . . . . . . . . . . . Slashing Weapon 5 | . . . . . . 2 . . 1 . . . 1 1 Piercing Weapon . | . . . . . . . . . . . . . . . Special Melee Weapon . | . . . . . . . . . . . . . . . Unidentified Prototypes 15 | . . . . . 3 9 . . 3 . . . . . Parts Lost 28 | . . . . 4 2 1 . . . . . 1 19 1 Power 6 | . . . . 1 1 . . . . . . . 4 . Propulsion 8 | . . . . 2 1 . . . . . . . 5 . Utility 8 | . . . . . . 1 . . . . . 1 5 1 Weapon 6 | . . . . 1 . . . . . . . . 5 . Highest Loss Streak 14 | . . . . 3 1 1 . . . . . 1 14 1 To Critical Strikes . | . . . . . . . . . . . . . . . Average Slot Usage (%) 79 | . 81 85 85 76 82 77 84 84 83 84 80 83 62 74 Engine 7 | . 14 14 14 7 . 7 7 7 7 7 13 13 6 6 Core 1 | . . . . 6 8 . . . . . . . 4 6 Treads 1 | . . . . 10 12 . . . . . . . . . Leg 1 | . . . . . . . . . . . . . 13 6 Wheel 15 | . 28 28 28 10 17 15 15 15 15 15 13 13 3 13 Device 10 | . . . . . . 14 15 15 15 15 13 18 4 7 Storage 8 | . 10 14 14 14 9 7 7 7 7 7 6 6 11 13 Processor 2 | . . . . . . . . . 4 7 6 6 1 . Protection 12 | . . . . . 17 16 23 23 17 15 13 11 . 6 Energy Gun 2 | . 21 14 14 12 1 . . . . . . . . . Energy Cannon 7 | . . . . . . 12 7 7 11 14 13 12 4 . Ballistic Gun 2 | . 6 14 14 14 1 . . . . . . . . . Launcher 1 | . . . . . 13 . . . . . . . . 1 Slashing Weapon 1 | . . . . . . 1 7 7 3 . . . . 4 Peak Build Rating 78 | 5 6 7 7 14 42 71 68 68 74 72 75 78 71 65 Average Rating 51 | 3 5 6 6 9 26 56 67 68 69 70 75 75 49 56 On Entrance 41 | . 5 6 7 7 14 41 66 68 68 70 71 75 71 57 Naked Turns . | . . . . . . . . . . . . . . . Heaviest Build 122 | 7 47 46 46 51 81 115 116 116 122 102 112 113 93 87 Greatest Support 56 | 26 26 26 26 40 56 56 56 56 56 56 56 56 56 38 Greatest Overweight (x) 5 | . 1 1 1 2 5 2 2 2 2 1 1 2 4 2 Average Overweight (x) 1 | . . 1 1 1 1 1 2 2 1 1 1 1 1 1 Largest Inventory Capacity 20 | 5 20 20 20 20 20 20 20 20 20 20 20 20 20 20 Average Capacity 19 | 5 16 20 20 20 20 20 20 20 20 20 20 20 20 20 Most Carried 20 | 5 5 10 11 17 20 20 20 20 20 20 19 20 20 20 Average Carried 17 | 3 4 7 10 13 18 19 20 20 20 20 19 19 15 18 Final Capacity 20 | 5 20 20 20 20 20 20 20 20 20 20 20 20 20 20 Final Carried 20 | 5 5 10 11 15 19 20 20 20 20 20 19 20 20 16 Class Distribution -------------------- 83% | Mutant 14% | Scavenger-Mutant Dominant Class ---------------- Mutant | -10/Materials Mutant | -10/Mines Mutant | -10/Exiles Mutant | -9/Mines Scavenger-Mutant | -8/Materials Mutant | -7/Factory Mutant | -7/Lower Caves Mutant | -7/Lower Caves Mutant | -7/Zion Mutant | -6/Proximity Caves Mutant | -6/Factory Mutant | -6/Lower Caves Scavenger-Mutant | -6/Lower Caves Derelict-Mutant | -6/Data Miner Resources | -11 -10 -10 -10 -9 -8 -7 -7 -7 -7 -6 -6 -6 -6 -6 ----------- Run | Yrd Mat Min Exi Min Mat Fac Low Low Zio Pro Fac Low Low Dat Matter Collected 2102 | 246 35 12 . 81 380 694 24 1 90 30 . 155 354 . Remotely . | . . . . . . . . . . . . . . . Salvage Created 3246 | . 177 96 . 181 384 1289 147 85 . 35 . 433 363 56 Parts 141 | . 4 11 . 14 27 50 5 3 . . . 11 16 . Haulers Intercepted 4 | . 1 . . . . 3 . . . . . . . . Recyclers Shooed 4 | . . 1 . . . 3 . . . . . . . . Parts Field Recycled . | . . . . . . . . . . . . . . . Retrieved Matter . | . . . . . . . . . . . . . . . Parts Self-Destructed 32 | . . . . . . . 13 3 . . . 7 9 . Prevented 5 | . . . . . . . . . . . . . 5 . Kills | -11 -10 -10 -10 -9 -8 -7 -7 -7 -7 -6 -6 -6 -6 -6 ------- Run | Yrd Mat Min Exi Min Mat Fac Low Low Zio Pro Fac Low Low Dat Combat Hostiles Destroyed 96 | . 1 6 . 7 17 29 3 2 . 1 . 11 16 3 Melee 3 | . . . . . . . . 1 . . . . 2 . Guns 15 | . . 6 . 7 2 . . . . . . . . . Cannons 28 | . . . . . . 10 3 1 . 1 . 7 6 . AOE 48 | . 1 . . . 15 17 . . . . . 4 8 3 Classes Destroyed 21 | . 5 1 . 1 7 5 . . . 1 . 1 . . Worker 6 | . . . . . 3 3 . . . . . . . . Builder 5 | . . . . . 3 2 . . . . . . . . Tunneler 1 | . . . . . 1 . . . . . . . . . Hauler 4 | . 1 . . . . 3 . . . . . . . . Recycler 4 | . 1 . . . . 3 . . . . . . . . Minesweeper 1 | . . . . . . . . . . . . 1 . . Mechanic 1 | . . . . . . 1 . . . . . . . . Operator 1 | . 1 . . . . . . . . . . . . . Watcher 4 | . 1 . . . 2 1 . . . . . . . . Swarmer 17 | . . 6 . 4 5 . . . . . . . 2 . Cutter 3 | . . . . . 3 . . . . . . . . . Grunt 36 | . 1 . . 2 4 12 3 . . . . 9 5 . Duelist 6 | . . . . . . 1 . . . . . 1 4 . Protector 2 | . . . . . . 2 . . . . . . . . Sentry 8 | . . . . . 3 3 . . . . . 1 1 . Demolisher 1 | . . . . 1 . . . . . . . . . . Specialist 2 | . . . . . . 2 . . . . . . . . Hunter 5 | . . . . . 1 2 . 2 . . . . . . Programmer 7 | . . . . . . 7 . . . . . . . . Heavy 1 | . . . . . 1 . . . . . . . . . Behemoth 1 | . . . . . . . . . . 1 . . . . Enhanced Grunt 3 | . . . . . . . . . . . . . . 3 Wasp 3 | . . . . . . . . . . . . . 3 . Thug 1 | . . . . . . . . . . . . . 1 . Best Kill Streak 12 | . 3 3 . 3 6 12 3 1 . 1 . 3 8 3 Combat Bots Only 10 | . 1 3 . 3 4 10 3 1 . 1 . 3 8 3 Max Kills in Single Turn 7 | . 2 2 . 1 5 7 1 1 . 1 . 3 4 2 Gunslinging 1 | . . 1 . . . . . . . . . . . . Exploded 5 | . 1 . . . 3 5 . . . . . 2 4 2 Melee 1 | . . . . . . . . 1 . . . . 1 . Uniques/NPCs Destroyed . | . . . . . . . . . . . . . . . Combat | -11 -10 -10 -10 -9 -8 -7 -7 -7 -7 -6 -6 -6 -6 -6 -------- Run | Yrd Mat Min Exi Min Mat Fac Low Low Zio Pro Fac Low Low Dat Hostile Shots Fired 529 | . 7 23 . 31 48 118 7 16 . 6 . 72 195 6 Missed 151 | . 2 8 . 7 16 40 1 3 . 2 . 20 51 1 Damage Taken 5855 | . 62 125 . 289 754 860 82 60 . 86 . 681 2690 166 Core 1164 | . 10 48 . 68 47 92 28 . . . . 87 721 63 Absorbed by Shields . | . . . . . . . . . . . . . . . Redirected to Shielding 104 | . . . . . 94 10 . . . . . . . . Ignored by Resistances 606 | . . . . . 137 74 29 29 . 25 . 172 82 58 Core Remaining (%) 80 | 100 . . . 49 91 . . . . 82 . . . . Volleys Fired 240 | . 23 10 . 26 32 55 7 8 13 6 . 28 28 4 Largest 2 | . 2 2 . 2 2 2 1 1 2 2 . 2 2 1 Hottest 180 | . 90 60 . 70 70 160 90 90 180 180 . 180 180 45 Shots Fired 425 | . 43 20 . 44 64 103 7 8 21 12 . 54 45 4 Gun 135 | . 43 20 . 44 28 . . . . . . . . . Cannon 235 | . . . . . . 97 7 8 21 12 . 51 39 . Launcher 55 | . . . . . 36 6 . . . . . 3 6 4 Special . | . . . . . . . . . . . . . . . Kinetic 78 | . 13 10 . 26 14 3 . . . . . . 12 . Thermal 236 | . 10 . . 4 14 92 7 8 16 12 . 51 22 . Explosive 55 | . . . . . 36 6 . . . . . 3 6 4 Electromagnetic 56 | . 20 10 . 14 . 2 . . 5 . . . 5 . Robot Hit Streak 12 | . 8 4 . 8 4 12 7 4 . 3 . 7 10 6 Robot Miss Streak 4 | . 2 3 . 4 2 3 1 1 . 1 . 4 4 2 Penetration Max . | . . . . . . . . . . . . . . . Secondary Targets 5 | . 1 2 . 2 . . . . . . . . . . Max Gunslinging Chain 1 | . 1 1 . 1 . . . . . . . . . . Shots Hit Robots 269 | . 27 10 . 26 30 79 8 7 . 7 . 31 39 5 Core Hits 324 | . 8 8 . 14 59 111 4 2 . 3 . 35 42 38 Critical Kills . | . . . . . . . . . . . . . . . Critical Parts Destroyed 1 | . 1 . . . . . . . . . . . . . Critical Strikes 9 | . 3 . . 1 . . 1 . . . . . 4 . Burn 2 | . 2 . . . . . . . . . . . . . Destroy 1 | . 1 . . . . . . . . . . . . . Blast 2 | . . . . . . . . . . . . . 2 . Corrupt 1 | . . . . 1 . . . . . . . . . . Sever 3 | . . . . . . . 1 . . . . . 2 . Melee Attacks 41 | . . . . . . 8 4 1 12 . . . 15 1 Impact . | . . . . . . . . . . . . . . . Slashing 41 | . . . . . . 8 4 1 12 . . . 15 1 Piercing . | . . . . . . . . . . . . . . . Sneak Attacks 7 | . . . . . . 5 1 . . . . . . 1 Combat Hostiles . | . . . . . . . . . . . . . . . Follow-up Attacks . | . . . . . . . . . . . . . . . Damage Inflicted 15539 | . 388 96 . 277 1755 5625 418 276 . 468 . 1864 2736 1636 Guns 848 | . 324 96 . 277 151 . . . . . . . . . Cannons 4587 | . . . . . . 1807 227 223 . 405 . 1134 791 . Explosions 8713 | . 64 . . . 1604 3216 . . . 63 . 730 1479 1557 Melee 1391 | . . . . . . 602 191 53 . . . . 466 79 Ramming . | . . . . . . . . . . . . . . . Kinetic 691 | . 58 48 . 124 64 107 . . . . . . 290 . Thermal 4610 | . 125 . . 37 87 1810 227 223 . 468 . 1251 382 . Explosive 8331 | . . . . . 1604 3078 . . . . . 613 1479 1557 Electromagnetic 516 | . 205 48 . 116 . 28 . . . . . . 119 . Impact . | . . . . . . . . . . . . . . . Slashing 1391 | . . . . . . 602 191 53 . . . . 466 79 Piercing . | . . . . . . . . . . . . . . . Highest Corruption 3 | . . . . . . 3 1 1 1 . . . . . Average Corruption 1 | . . . . . . 1 1 1 1 . . . . . Corruption Purged 5 | . . . . . . 5 . . . . . . . . Corruption Blocked . | . . . . . . . . . . . . . . . Effects 20 | . . . . . . 10 6 4 . . . . . . Message Errors 5 | . . . . . . 2 3 . . . . . . . Matter Fused 5 | . . . . . . 3 1 1 . . . . . . Heat Flow Errors 1 | . . . . . . 1 . . . . . . . . Energy Discharges 6 | . . . . . . 2 2 2 . . . . . . Data Loss (minor) 2 | . . . . . . 1 . 1 . . . . . . Data Loss (major) 1 | . . . . . . 1 . . . . . . . . Overload Shots . | . . . . . . . . . . . . . . . Overflow Damage 555 | . . . . . 64 262 85 . . . . 52 83 9 Projectiles 158 | . . . . . . 66 . . . . . 52 40 . Explosions 229 | . . . . . 64 113 . . . . . . 43 9 Melee 168 | . . . . . . 83 85 . . . . . . . Knockbacks 2 | . . . . . . 2 . . . . . . . . Impact . | . . . . . . . . . . . . . . . Kinetic 2 | . . . . . . 2 . . . . . . . . Secondary . | . . . . . . . . . . . . . . . Self-Inflicted Damage 309 | . 11 . . . 143 . . . . . . 46 109 . Shots 13 | . 1 . . . 5 . . . . . . 2 5 . Rammed . | . . . . . . . . . . . . . . . Targets Rammed . | . . . . . . . . . . . . . . . Kicked . | . . . . . . . . . . . . . . . Crushed . | . . . . . . . . . . . . . . . Highest Temperature 252 | . 252 40 . 114 98 199 194 195 195 197 . 198 193 13 Average Temperature 84 | . 111 20 . 42 26 91 97 123 95 129 . 103 76 5 Received Heat Transfer 1302 | . 30 . . 54 54 309 54 . . 12 . 261 528 . Effects 1 | . 1 . . . . . . . . . . . . . Interference 1 | . 1 . . . . . . . . . . . . . Siege Activations . | . . . . . . . . . . . . . . . Robots Corrupted . | . . . . . . . . . . . . . . . Combat Hostiles . | . . . . . . . . . . . . . . . Parts Fried 2 | . 2 . . . . . . . . . . . . . Impact Corruptions . | . . . . . . . . . . . . . . . Robots Melted 2 | . . . . . . 2 . . . . . . . . Combat Hostiles 2 | . . . . . . 2 . . . . . . . . Parts Melted 11 | . 2 . . . . 9 . . . . . . . . Heat Transferred 4328 | . 483 . . 111 259 3275 . . . 50 . 150 . . Parts Sabotaged . | . . . . . . . . . . . . . . . Parts Stolen . | . . . . . . . . . . . . . . . Parts Stripped . | . . . . . . . . . . . . . . . Power Chain Reactions 5 | . 2 . . . . . . . . 1 . 2 . . Alert | -11 -10 -10 -10 -9 -8 -7 -7 -7 -7 -6 -6 -6 -6 -6 ------- Run | Yrd Mat Min Exi Min Mat Fac Low Low Zio Pro Fac Low Low Dat Peak Influence 929 | . 82 201 . 160 646 929 . . . . 18 . . . Initial 247 | . . 31 . . 62 247 . . . . 18 . . . Average 281 | . 36 158 . 93 196 469 . . . . 18 . . . Maximum Alert Level 3 | . . 1 . . 2 3 . . . . . . . . Low Security (%) 38 | 100 100 31 . 100 62 . . . . . 100 . . . Level 1 39 | . . 68 . . 26 55 . . . . . . . . Level 2 11 | . . . . . 11 19 . . . . . . . . Level 3 10 | . . . . . . 24 . . . . . . . . Level 4 . | . . . . . . . . . . . . . . . Level 5 . | . . . . . . . . . . . . . . . High Security . | . . . . . . . . . . . . . . . Max Security . | . . . . . . . . . . . . . . . Squads Dispatched 11 | . 1 . . . 4 5 . . . . . . 1 . Investigation 1 | . . . . . . 1 . . . . . . . . Extermination 1 | . . . . . . 1 . . . . . . . . Reinforcement 7 | . 1 . . . 4 2 . . . . . . . . Assault 2 | . . . . . . 1 . . . . . . 1 . Garrison . | . . . . . . . . . . . . . . . Intercept . | . . . . . . . . . . . . . . . Searches Triggered . | . . . . . . . . . . . . . . . Construction Impeded 1 | . . . . . 1 . . . . . . . . . Haulers Reinforced 1 | . . . . . . 1 . . . . . . . . Active Scanning Responses . | . . . . . . . . . . . . . . . Cargo Convoy Interrupts 1 | . . . . . . 1 . . . . . . . . Stealth | -11 -10 -10 -10 -9 -8 -7 -7 -7 -7 -6 -6 -6 -6 -6 --------- Run | Yrd Mat Min Exi Min Mat Fac Low Low Zio Pro Fac Low Low Dat Distress Signals 2 | . 1 . . . 1 . . . . . . . . . Communications Jammed . | . . . . . . . . . . . . . . . Distress Signals . | . . . . . . . . . . . . . . . Times Spotted 129 | . 5 6 . 7 26 38 3 2 . 1 1 12 24 4 Peak Tracking Total 9 | . 2 3 . 4 6 7 3 1 . 1 1 3 9 4 Tactical Retreats 9 | . . 1 . 1 3 1 . . . . . 1 2 . Traps | -11 -10 -10 -10 -9 -8 -7 -7 -7 -7 -6 -6 -6 -6 -6 ------- Run | Yrd Mat Min Exi Min Mat Fac Low Low Zio Pro Fac Low Low Dat Traps Triggered 1 | . . . . . . 1 . . . . . . . . Indirectly . | . . . . . . . . . . . . . . . Trap Hack Attempts . | . . . . . . . . . . . . . . . Triggered . | . . . . . . . . . . . . . . . Disarmed . | . . . . . . . . . . . . . . . Reprogrammed . | . . . . . . . . . . . . . . . Reused . | . . . . . . . . . . . . . . . Traps Extracted . | . . . . . . . . . . . . . . . Installed . | . . . . . . . . . . . . . . . Triggered 1 | . . . . . . . . . . . . 1 . . Most Traps Carried 1 | . . . . . . . . . . . . 1 1 1 Objects Rigged 10 | . . . . . 8 1 . . . . . . . 1 Exploded 8 | . . . . . 4 3 . . . . . . . 1 Machines | -11 -10 -10 -10 -9 -8 -7 -7 -7 -7 -6 -6 -6 -6 -6 ---------- Run | Yrd Mat Min Exi Min Mat Fac Low Low Zio Pro Fac Low Low Dat Machines Disabled 16 | . . 1 . . 3 11 . . 1 . . . . . Max in Single Turn 5 | . . 1 . . 2 5 . . 1 . . . . . Garrison Access 1 | . . . . . . 1 . . . . . . . . Machines Repaired . | . . . . . . . . . . . . . . . Machines Dismantled . | . . . . . . . . . . . . . . . Machines Sabotaged . | . . . . . . . . . . . . . . . Overloaded Fab Kills . | . . . . . . . . . . . . . . . Hacking | -11 -10 -10 -10 -9 -8 -7 -7 -7 -7 -6 -6 -6 -6 -6 --------- Run | Yrd Mat Min Exi Min Mat Fac Low Low Zio Pro Fac Low Low Dat Machines Accessed 18 | . . . 2 . 4 6 2 . . . . . . 4 Terminals 10 | . . . . . 4 5 1 . . . . . . . Fabricators . | . . . . . . . . . . . . . . . Repair Stations . | . . . . . . . . . . . . . . . Recycling Units . | . . . . . . . . . . . . . . . Scanalyzers . | . . . . . . . . . . . . . . . Garrison Access 1 | . . . . . . 1 . . . . . . . . Total Hacks 61 | . . . 2 . 11 15 2 . . . . . . 31 Successful 43 | . . . 2 . 4 4 2 . . . . . . 31 Failed 18 | . . . . . 7 11 . . . . . . . . Catastrophic 7 | . . . . . 2 5 . . . . . . . . Database Lockouts . | . . . . . . . . . . . . . . . Manual 14 | . . . 1 . 5 8 . . . . . . . . Terminals 26 | . . . . . 11 14 1 . . . . . . . Fabricators . | . . . . . . . . . . . . . . . Repair Stations . | . . . . . . . . . . . . . . . Recycling Units . | . . . . . . . . . . . . . . . Scanalyzers . | . . . . . . . . . . . . . . . Garrison Access 1 | . . . . . . 1 . . . . . . . . Terminal Hacks 38 | . . . 2 . 2 1 2 . . . . . . 31 Record 13 | . . . 1 . . . 1 . . . . . . 11 Part Schematic 11 | . . . . . . . . . . . . . . 11 Robot Schematic 6 | . . . . . . . . . . . . . . 6 Prototype ID Bank 5 | . . . . . 1 1 . . . . . . . 3 Open Door 1 | . . . . . . . 1 . . . . . . . Zone Layout 1 | . . . . . 1 . . . . . . . . . Derelict Proto ID Bank 1 | . . . 1 . . . . . . . . . . . Fabricator Hacks . | . . . . . . . . . . . . . . . Repair Station Hacks . | . . . . . . . . . . . . . . . Recycling Unit Hacks . | . . . . . . . . . . . . . . . Scanalyzer . | . . . . . . . . . . . . . . . Garrison Access Hacks . | . . . . . . . . . . . . . . . Unauthorized Hacks 5 | . . . . . 2 3 . . . . . . . . Terminals 5 | . . . . . 2 3 . . . . . . . . Botnet 4 | . . . . . 2 2 . . . . . . . . Operators 1 | . . . . . . 1 . . . . . . . . Fabricators . | . . . . . . . . . . . . . . . Repair Stations . | . . . . . . . . . . . . . . . Recycling Units . | . . . . . . . . . . . . . . . Scanalyzers . | . . . . . . . . . . . . . . . Garrison Access . | . . . . . . . . . . . . . . . Data Cores Recovered 1 | . 1 . . . . . . . . . . . . . Used . | . . . . . . . . . . . . . . . Hacking Detections 10 | . . . . . 4 6 . . . . . . . . Full Trace Events 1 | . . . . . . 1 . . . . . . . . Feedback Events . | . . . . . . . . . . . . . . . Feedback Blocked . | . . . . . . . . . . . . . . . Robot Schematics Acquired 9 | . . . . . . . . . 3 . . . . 6 Robots Built . | . . . . . . . . . . . . . . . Authchips . | . . . . . . . . . . . . . . . Time . | . . . . . . . . . . . . . . . Total Robot Build Rating . | . . . . . . . . . . . . . . . Part Schematics Acquired 25 | . . . . . . . . . 14 . . . . 11 Parts Built . | . . . . . . . . . . . . . . . Authchips . | . . . . . . . . . . . . . . . Time . | . . . . . . . . . . . . . . . Total Part Build Rating . | . . . . . . . . . . . . . . . Parts Repaired . | . . . . . . . . . . . . . . . Time . | . . . . . . . . . . . . . . . Parts Recycled . | . . . . . . . . . . . . . . . Recycled Matter . | . . . . . . . . . . . . . . . Retrieved Matter . | . . . . . . . . . . . . . . . Retrieved Components . | . . . . . . . . . . . . . . . Parts Scanalyzed . | . . . . . . . . . . . . . . . Part Schematics Acquired . | . . . . . . . . . . . . . . . Parts Damaged . | . . . . . . . . . . . . . . . Bothacking | -11 -10 -10 -10 -9 -8 -7 -7 -7 -7 -6 -6 -6 -6 -6 ------------ Run | Yrd Mat Min Exi Min Mat Fac Low Low Zio Pro Fac Low Low Dat Used RIF Installer . | . . . . . . . . . . . . . . . Robots Hacked . | . . . . . . . . . . . . . . . Non-combat . | . . . . . . . . . . . . . . . Combat . | . . . . . . . . . . . . . . . Robot Hacks Applied . | . . . . . . . . . . . . . . . Relay Couplers Released 3 | . . . . . . 3 . . . . . . . . Programmers 3 | . . . . . . 3 . . . . . . . . Fabnet Peak Effective % . | . . . . . . . . . . . . . . . Robots Rewired 2 | . . . . . . . . . . . . . 2 . Allies Hacked . | . . . . . . . . . . . . . . . Hacks Repelled . | . . . . . . . . . . . . . . . Allies | -11 -10 -10 -10 -9 -8 -7 -7 -7 -7 -6 -6 -6 -6 -6 -------- Run | Yrd Mat Min Exi Min Mat Fac Low Low Zio Pro Fac Low Low Dat Total Allies 7 | . . 2 . . . . . . 2 . . . 3 . Largest Group 2 | . . 2 2 . . . . . 2 2 . . 2 . Highest-Rated Group 146 | . . 45 45 . . . . . 45 45 . . 146 . Highest-Rated Ally 146 | . . 31 31 . . . . . 31 31 . . 146 . Total Orders . | . . . . . . . . . . . . . . . Ally Attacks 19 | . . . . . . . . . . 10 . . 9 . Total Damage 551 | . . . . . . . . . . 163 . . 388 . Kills 5 | . . . . . . . . . . . . . 5 . Allies Corrupted . | . . . . . . . . . . . . . . . Allies Melted . | . . . . . . . . . . . . . . . Intel | -11 -10 -10 -10 -9 -8 -7 -7 -7 -7 -6 -6 -6 -6 -6 ------- Run | Yrd Mat Min Exi Min Mat Fac Low Low Zio Pro Fac Low Low Dat Robot Analysis Total 145 | . . . . . . . . . . . . . . 145 Derelict Logs Recovered 10 | . . 1 . 2 . . 2 1 . 3 . 1 . . Drone Launches . | . . . . . . . . . . . . . . . Drone Recoveries . | . . . . . . . . . . . . . . . Exploration | -11 -10 -10 -10 -9 -8 -7 -7 -7 -7 -6 -6 -6 -6 -6 ------------- Run | Yrd Mat Min Exi Min Mat Fac Low Low Zio Pro Fac Low Low Dat Turns Passed 8485 | 45 167 422 342 313 841 1349 464 296 2039 359 70 727 936 115 Spaces Moved 5761 | 39 101 350 232 140 562 793 336 213 1604 292 61 502 447 89 Core 11 | 11 . . . . . . . . . . . . . . Treads 45 | . . . . 45 . . . . . . . . . . Legs 299 | . . . . . . . . . . . . . 299 . Wheels 5402 | 28 101 350 232 95 562 793 336 213 1604 292 61 502 144 89 Hover . | . . . . . . . . . . . . . . . Flight 4 | . . . . . . . . . . . . . 4 . Fastest Speed 50 | 50 90 105 105 105 101 115 130 130 115 115 115 115 105 105 Average Speed 122 | 78 98 105 105 162 112 118 130 130 120 115 115 122 166 106 Slowest Speed 352 | 90 105 105 105 240 155 130 130 130 130 115 115 130 352 120 Overloaded Moves . | . . . . . . . . . . . . . . . Propulsion Burnouts . | . . . . . . . . . . . . . . . Robots Hopped . | . . . . . . . . . . . . . . . Cave-ins Triggered . | . . . . . . . . . . . . . . . Exploration Rate (%) 50 | 3 32 85 62 44 59 32 54 41 87 53 2 76 57 76 Regions Visited 14 Branch Regions 10 Pre-discovered Areas 33 | . . . 1 . . . 1 1 3 . . . . 27 Known Exits Taken 1 | . . . . . . . . . . 1 . . . . Unknown Exits Taken 13 | 1 1 1 1 1 1 1 1 1 1 . 1 1 1 . Scrap Searched 20 | . . 1 . . . . 1 1 3 3 . 3 8 . Spaces Dug 16 | . . . . . 12 . . . 4 . . . . . Terrain Destroyed 681 | . 8 . . . 208 160 1 2 6 6 . 111 133 46 Melee 2 | . . . . . . . . . 2 . . . . . Projectile 43 | . . . . . . . 1 2 4 1 . 20 15 . AOE 636 | . 8 . . . 208 160 . . . 5 . 91 118 46 Terrain Rammed . | . . . . . . . . . . . . . . . Walls Destroyed . | . . . . . . . . . . . . . . . Machines Disabled . | . . . . . . . . . . . . . . . Actions | -11 -10 -10 -10 -9 -8 -7 -7 -7 -7 -6 -6 -6 -6 -6 --------- Run | Yrd Mat Min Exi Min Mat Fac Low Low Zio Pro Fac Low Low Dat Total 6695 | 53 128 386 330 186 720 1085 348 221 1672 299 61 543 560 103 Wait 353 | . . 22 96 5 46 149 . . 27 . . 1 7 . Move 5747 | 38 100 349 231 139 561 792 335 212 1603 291 60 501 446 89 Hop . | . . . . . . . . . . . . . . . Pick Up 100 | 10 2 5 2 9 26 19 . . 2 . . 2 23 . Fast Attach 24 | . . . . . 5 10 . . 4 . . 3 2 . Attach 50 | 5 1 . . 5 10 4 . . . . 1 1 20 3 Detach 8 | . . . . . 4 3 . . . . . . . 1 Swap 48 | . 1 . . 2 4 20 2 . 5 2 . 6 4 2 Drop 64 | . 1 . 1 . 24 24 . . 6 . . 1 5 2 Fire 240 | . 23 10 . 26 32 55 7 8 13 6 . 28 28 4 Melee 41 | . . . . . . 8 4 1 12 . . . 15 1 Ram . | . . . . . . . . . . . . . . . Kick . | . . . . . . . . . . . . . . . Crush . | . . . . . . . . . . . . . . . Escape Stasis . | . . . . . . . . . . . . . . . Rewire 10 | . . . . . . . . . . . . . 10 . Trap 10 | . . . . . 8 1 . . . . . . . 1 Miscellaneous . | . . . . . . . . . . . . . . . Route ------- -11/Scrapyard -10/Materials -10/Mines (discovered 3 exits: [*Mat x2] / *Exi) -10/Exiles -9/Mines -8/Materials (discovered 2 exits: *Fac x2) -7/Factory (discovered 2 exits: *Fac / *Low) -7/Lower Caves -7/Lower Caves -7/Zion -6/Proximity Caves -6/Factory (discovered 3 exits: Fac x2 / [*Low]) -6/Lower Caves -6/Lower Caves (discovered 2 exits: *Dat / *Fac) -6/Data Miner (discovered 1 exit: [*Pro]) History --------- Turn | Location | Event 20 | -11/Scrapyard | Discovered new exit (range 15) 46 | -11/Scrapyard | Entered Materials 195 | -10/Materials | Discovered new exit (range 13) 213 | -10/Materials | Entered Mines 222 | -10/Mines | Met a Derelict bent on vengeance 251 | -10/Mines | Discovered new exit (range 5) 312 | -10/Mines | Build established: Mutant 344 | -10/Mines | Discovered new exit (range 15) 373 | -10/Mines | Learned Materials emergency access door positions 619 | -10/Mines | Deemed a non-threat by the Exiles lab entrance 620 | -10/Mines | Discovered new exit (range 5) 635 | -10/Mines | Entered Exiles 635 | -10/Exiles | Accompanied by 2 allies 662 | -10/Exiles | Met 8R-AWN 665 | -10/Exiles | Led the pair of lost Derelicts to a safe place 679 | -10/Exiles | Met EX-HEX 707 | -10/Exiles | Met EX-BIN 721 | -10/Exiles | Aligned with FarCom system 722 | -10/Exiles | Given EX-Vault access code 747 | -10/Exiles | Opened EX-Vault 753 | -10/Exiles | Found PSU Rigger 773 | -10/Exiles | Warned to stay clear of 0b10 Research branches 791 | -10/Exiles | Exiles lab attacked by MAIN.C 814 | -10/Exiles | Learned location of Zion (-7) 860 | -10/Exiles | Discovered new exit (range 14) 977 | -10/Exiles | Left Exiles lab with PSU Rigger 977 | -10/Exiles | Entered Mines 1085 | -9/Mines | Found a damaged Exp. Sensor Array with a note attached 1087 | -9/Mines | Found Prototype Device 1125 | -9/Mines | Learned Materials emergency access door positions 1153 | -9/Mines | Core integrity fell below 50% 1177 | -9/Mines | Lost 3 parts (1p1n1w) 1189 | -9/Mines | Assembled infested the area 1210 | -9/Mines | Learned Materials stockpile data 1253 | -9/Mines | Discovered new exit (range 11) 1290 | -9/Mines | Entered Materials 1290 | -8/Materials | Evolved 4 slots: Propulsion x2, Utility x2 1608 | -8/Materials | Identified Exp. Sensor Array 1649 | -8/Materials | Discovered new exit (range 10) 1744 | -8/Materials | Build established: Scavenger-Mutant 2046 | -8/Materials | Discovered new exit (range 13) 2131 | -8/Materials | Entered Factory 2131 | -7/Factory | Evolved 2 slots: Utility x2 2174 | -7/Factory | Build established: Mutant 2402 | -7/Factory | Discovered new exit (range 6) 2484 | -7/Factory | Found Prototype Launcher 2484 | -7/Factory | Identified Rocket Array 2489 | -7/Factory | Found Rocket Array 3138 | -7/Factory | Destroyed 7 combat bots 3141 | -7/Factory | Cargo convoy interrupted 3181 | -7/Factory | Destroyed 10 combat bots 3215 | -7/Factory | Found PL-3XN's Ring of Power 3447 | -7/Factory | Discovered new exit (range 13) 3480 | -7/Factory | Entered Lower Caves 3700 | -7/Lower Caves | Learned Factory trap positions 3939 | -7/Lower Caves | Discovered new exit (range 5) 3944 | -7/Lower Caves | Entered another Lower Caves area 4122 | -7/Lower Caves | Discovered new exit (range 8) 4240 | -7/Lower Caves | Entered Zion 4389 | -7/Zion | Discovered new exit (range 9) 4415 | -7/Zion | Found GAL Module 4445 | -7/Zion | System corruption cleaned by Quarantine Array 4637 | -7/Zion | Visited the Megawrench Repair Shop 4929 | -7/Zion | Learned location of Quarantine (-3) 4970 | -7/Zion | Found Prototype Processor 4970 | -7/Zion | Identified Exp. Core Analyzer 4978 | -7/Zion | Found Prototype Processor 4978 | -7/Zion | Identified Spectral Analyzer 4985 | -7/Zion | Found Prototype Processor 4985 | -7/Zion | Identified Exp. Terrain Scan Processor 5061 | -7/Zion | Rebuked by Imprinter 5198 | -7/Zion | Gained Derelict followers 6092 | -7/Zion | Warned about damaging Zion machinery 6279 | -7/Zion | Entered Proximity Caves 6279 | -6/Proximity Caves | Accompanied by 2 allies 6311 | -6/Proximity Caves | Spotted B-75 Beast 6333 | -6/Proximity Caves | Destroyed B-75 Beast 6411 | -6/Proximity Caves | Learned Factory security intel 6414 | -6/Proximity Caves | Identified exit to Factory 6471 | -6/Proximity Caves | Learned 8 Factory zone layouts 6638 | -6/Proximity Caves | Entered Factory 6638 | -6/Factory | Evolved 2 slots: Power x1, Utility x1 6639 | -6/Factory | Identified exit to Factory 6640 | -6/Factory | Loaded intel: 94 trap records 6705 | -6/Factory | Discovered new exit (range 3) 6708 | -6/Factory | Entered Lower Caves 6767 | -6/Lower Caves | Learned Factory garrison access intel 7159 | -6/Lower Caves | Attracted the attention of an 0b10 checkpoint 7427 | -6/Lower Caves | Discovered new exit (range 8) 7435 | -6/Lower Caves | Entered another Lower Caves area 7497 | -6/Lower Caves | Lost 4 parts (1p1n1u1w) 7552 | -6/Lower Caves | Attracted the attention of an 0b10 outpost 7582 | -6/Lower Caves | Destroyed 8 combat bots 7629 | -6/Lower Caves | Core integrity fell below 50% 7648 | -6/Lower Caves | Core integrity fell below 20% 7649 | -6/Lower Caves | NK-0LA showed up to help 7651 | -6/Lower Caves | NK-0LA revealed a hidden path 7717 | -6/Lower Caves | Lost 14 parts (3p4n4u3w) 8003 | -6/Lower Caves | Build established: Scavenger-Mutant 8134 | -6/Lower Caves | Spotted B-75 Beast 8365 | -6/Lower Caves | Discovered new exit (range 7) 8371 | -6/Lower Caves | Entered Data Miner 8371 | -6/Data Miner | Discovered new exit (range 6) 8396 | -6/Data Miner | Met Data Miner 8441 | -6/Data Miner | Learned location of Section 7 (-2) 8441 | -6/Data Miner | Acquired the access code to Warlord's prototype stash 8455 | -6/Data Miner | Received God Mode back door access code from Data Miner 8469 | -6/Data Miner | Interfaced with the Data Conduit 8486 | -6/Data Miner | Destroyed by Enhanced Grunt with Neutron Cannon Last Messages --------------- Warlord, so if you see an opportunity, hack it and enter \\HCGH to gain control via the back door I've installed. Now off with you. 08467_ Sneak attack on Data Miner. 08467_ Data Miner disappears through a trap door. 08469_ Interfacing with system... Downloaded 145 analysis records. Downloaded 756 prototype IDs. Downloaded central machine database. Downloaded 26 destinations. Downloaded encryption format records. Connection remotely terminated. 08479_ Enhanced Grunt destroyed. 08480_ Prc. Matter Filter destroyed. 08482_ Destroyed Adv. Particle Charger. 08482_ Enhanced Grunt destroyed. 08484_ Destroyed Adv. Particle Charger. 08485_ The unstable cave ceiling collapses. Map ----- +----------------------------------------------------+ | | | | | | | | | | | | | | | | | | | | | | | | | | | ??????????????????????????????????????? | | ??????????????????????????????????????? | | ??????????????????????????????????????? | | ??????????????????????????????????????? | | ??????????????????????? ????????????## | | ???????############# ? ??????????### | | ?????"""""""""""""""# # ??????## | | ????""""""""" """"""" ####### < | | ????""""""""" g ** | | ????"""""" | | ???""""""" | | ???"""""" | | ???""""""" @ | | ????"""""" """"""""""""""" | | ????""""""" """" ############ | | ????""""""" """""###???????????? | | ?????"""""""" "#####?????????????? | | ??????######"## "#?????????????????? | | ???????????#"### "#?????????????????? | | ???????????#"### "#?????????????????? | | ???????????#"## "#?????????????????? | | ???????????#"## "#?????????????????? | | ?????????????# "#?????????????????? | | ?????????????### "#?????????????????? | | ???????????????# "##????????????????? | | ??????????????## ""#????????????????? | | ?????????????## ""#????????????????? | | ??????????##"#"X ""#????????????????? | | ??????????""""" "####?????????????? | | ??????????""""" X"""""?????????????? | | ??????????##"#"X "##"#?????????????? | | ???????????#?## X""""#?????????????? | | ??????????????## "##"#?????????????? | | ???????????????#######????????????????? | | ??????????????????????????????????????? | | ??????????????????????????????????????? | | ??????????????????????????????????????? | +----------------------------------------------------+ Best States ------------- Heat Dissipation 51 Coolant Potential 65 Energy Generation 29 Energy Capacity 750 Matter Stores 300 Matter Capacity 300 Sight Range 24 Terrain Scan Density 10 Armor Coverage 825 Resistance: KI 30 Resistance: TH 25 Propulsion Shielding 66 Weapon Cycling 15 Evasion (%) 50 Melee Accuracy 6 Armor Integrity Analysis 40 Recoil Reduction 2 Matter Filtering 75 Item Schematics ----------------- Imp. Melee Analysis Suite | -7/Zion | Archive Lgt. Angular Momentum Engine | -7/Zion | Archive Imp. Deuterium Engine | -7/Zion | Archive Thermal Shield | -7/Zion | Archive Imp. Medium Armor Plating | -7/Zion | Archive Tesla Rifle | -7/Zion | Archive Imp. Proton Missile Launcher | -7/Zion | Archive Energy Filter | -7/Zion | Archive Lyr. Medium Armor Plating | -7/Zion | Archive Imp. Recalibrator | -7/Zion | Archive Dynamic Insulation System | -7/Zion | Archive Matter Compressor | -7/Zion | Archive Nuclear Pulse Thruster | -7/Zion | Archive Imp. KE Penetrator | -7/Zion | Archive Combat Drone Bay | -6/Data Miner | Free Lgt. Regenerative Plating | -6/Data Miner | Free Cld. Gravmag System | -6/Data Miner | Free Prc. Energy Filter | -6/Data Miner | Free Kinetic Spear | -6/Data Miner | Free Field Propulsion Array | -6/Data Miner | Free Phase Gun | -6/Data Miner | Free Nanoactuators | -6/Data Miner | Free Recoil Nullifier | -6/Data Miner | Free Hvy. Gauss Cannon | -6/Data Miner | Free Biometal Leg | -6/Data Miner | Free Robot Schematics ------------------ B-48 Gladiator | -7/Zion | Archive R-06 Scavenger | -7/Zion | Archive L-41 Fighter | -7/Zion | Archive M-22 Extractor | -6/Data Miner | Free S-27 Virus | -6/Data Miner | Free Y-54 Guardian | -6/Data Miner | Free M-36 Artificer | -6/Data Miner | Free R-10 Processor | -6/Data Miner | Free A-27 Freighter | -6/Data Miner | Free Fabricated ------------ Nothing Alien Tech Used ----------------- None Achievements -------------- None Challenges ------------ None Game ------ Seed LayeredProtonExoskeleton Manual? 0 Play Time 01:21:19 Cumulative 252.6 hours Start 2024.10.21 @ 20:53:27 End 2024.10.21 @ 23:09:51 Sessions 3 Manual Loads 0 Difficulty Rogue Special Mode None Game No. 198 Rogue 189 Adventurer 9 Explorer 0 Win Type - Total 1 Types 1/0/0/0/0/0/0/0/0 Lore% 82 Gallery% 75 Achievement% 62 Wizard Run 0 Options --------- Layout 1 ASCII 0 Keyboard 0 Movement Numpad Keybinds 0 Fullscreen 1 Font 24/Smallcaps Map View 50x35 Zoom Use 0% Tactical HUD 1 Map Filters NONE Filters NONE Steam 1 RUN: a5300845-fe69-4229-a82d-8edd499f2c43